[Event "106th British-ch 2019"]
[Site "Torquay"]
[Date "2019.07.28"]
[Round "2.17"]
[White "Gordon, Stephen J"]
[Black "Starley, Robert"]
[Result "1-0"]
[ECO "A36"]
[WhiteElo "2516"]
[BlackElo "2058"]
[Annotator "ChessBase"]
[PlyCount "111"]
[EventDate "2019.07.27"]
[EventType "swiss"]
[EventCountry "GBR"]
[SourceTitle "playchess.com"]
[Source "ChessBase"]
[SourceQuality "1"]
[TimeControl "40/5400+30:1800+30"]

1. c4 {[%emt 0:05:43]} Nf6 {[%emt 0:00:00]} 2. Nc3 {[%emt 0:00:34]} c5 {[%emt 0:00:07]} 3. g3 {[%emt 0:00:41]} Nc6 {[%emt 0:00:39]} 4. Bg2 {[%emt 0:00:15]} g6 {[%emt 0:00:34]} 5. e3 {[%emt 0:01:36]} Bg7 {[%emt 0:01:01]} 6. Nge2 {[%emt 0:00:08]} d6 {[%emt 0:01:25]} 7. d4 {[%emt 0:01:44]} cxd4 {[%emt 0:01:20]} 8. exd4 {[%emt 0:00:13]} Bd7 {[%emt 0:01:58]} 9. h3 {[%emt 0:08:45]} Qc8 {[%emt 0:02:20]} 10. g4 {[%emt 0:04:00]} h6 {[%emt 0:05:05]} 11. Be3 {[%emt 0:00:40]} a5 {[%emt 0:02:40]} 12. Na4 {[%emt 0:02:57]} Qc7 {[%emt 0:03:14]} 13. Nec3 {[%emt 0:03:02]} O-O {[%emt 0:06:57]} 14. Rc1 {[%emt 0:08:07]} Ra6 {[%emt 0:06:11]} 15. Nb5 {[%emt 0:04:33]} Qd8 {[%emt 0:01:29]} 16. b3 {[%emt 0:04:51]} Re8 {[%emt 0:03:17]} 17. O-O {[%emt 0:01:29]} Qb8 {[%emt 0:01:44]} 18. d5 {[%emt 0:01:58]} Nd8 {[%emt 0:02:50]} 19. Qd2 {[%emt 0:04:49]} Kh7 {[%emt 0:00:47]} 20. Nb6 {[%emt 0:02:52]} Bc8 {[%emt 0:03:07]} 21. c5 {[%emt 0:02:42]} dxc5 {[%emt 0:00:50]} 22. Bf4 {[%emt 0:01:06]} Rxb6 {[%emt 0:02:56]} 23. Bxb8 {[%emt 0:00:15]} Rxb5 {[%emt 0:00:11]} 24. Rfe1 {[%emt 0:01:37]} b6 {[%emt 0:01:47]} 25. Be5 {[%emt 0:02:21]} Bb7 {[%emt 0:04:13]} 26. d6 {[%emt 0:00:31]} Bxg2 {[%emt 0:02:42]} 27. dxe7 {[%emt 0:00:59]} Rxe7 {[%emt 0:04:38]} 28. Kxg2 {[%emt 0:03:00]} Ne6 {[%emt 0:04:55]} 29. Qd6 {[%emt 0:02:52]} Ra7 {[%emt 0:02:58]} 30. Rc4 {[%emt 0:05:51]} Rb4 {[%emt 0:03:11]} 31. Qc6 {[%emt 0:06:06]} Nd7 {[%emt 0:05:18]} 32. Bxg7 {[%emt 0:00:51]} Kxg7 {[%emt 0:00:09]} 33. Rxe6 {[%emt 0:00:43]} fxe6 {[%emt 0:00:33]} 34. Qxe6 {[%emt 0:00:06]} Nf6 {[%emt 0:02:57]} 35. Rxb4 {[%emt 0:00:16]} axb4 {[%emt 0:00:15]} 36. Qxb6 {[%emt 0:00:03]} Rxa2 {[%emt 0:00:40]} 37. Qc7+ {[%emt 0:00:50]} Kg8 {[%emt 0:00:42]} 38. Qe7 {[%emt 0:01:13]} Nh7 {[%emt 0:03:09]} 39. Qxc5 {[%emt 0:00:05]} Nf8 {[%emt 0:01:30]} 40. Qxb4 {[%emt 0:00:22]} Kf7 {[%emt 0:00:41]} 41. Qf4+ {[%emt 0:30:36]} Kg7 {[%emt 0:30:16]} 42. b4 {[%emt 0:01:08]} Ra4 {[%emt 0:01:06]} 43. Qc7+ {[%emt 0:02:53]} Kg8 {[%emt 0:00:31]} 44. Qd6 {[%emt 0:00:52]} Ra7 {[%emt 0:01:11]} 45. b5 {[%emt 0:00:16]} Rd7 {[%emt 0:00:32]} 46. Qc6 {[%emt 0:00:16]} Rg7 {[%emt 0:00:57]} 47. b6 {[%emt 0:00:19]} Nd7 {[%emt 0:00:19]} 48. b7 {[%emt 0:00:20]} Kh7 {[%emt 0:00:18]} 49. f4 {[%emt 0:01:02]} Nb8 {[%emt 0:00:28]} 50. Qc8 {[%emt 0:00:06]} Rg8 {[%emt 0:00:15]} 51. Qc7+ {[%emt 0:00:02]} Kh8 {[%emt 0:00:09]} 52. Kf3 {[%emt 0:00:01]} Re8 {[%emt 0:00:48]} 53. f5 {[%emt 0:00:16]} gxf5 {[%emt 0:00:35]} 54. gxf5 {[%emt 0:00:02]} Kg8 {[%emt 0:00:28]} 55. f6 {[%emt 0:00:11]} Rf8 {[%emt 0:00:28]} 56. Qg7# {[%emt 0:00:06]} 1-0

[Event "106th British-ch 2019"]
[Site "Torquay"]
[Date "2019.07.28"]
[Round "2.18"]
[White "Wadsworth, Matthew J"]
[Black "Ledger, Dave J"]
[Result "1-0"]
[ECO "A20"]
[WhiteElo "2418"]
[BlackElo "2168"]
[Annotator "NA"]
[PlyCount "63"]
[EventDate "2019.07.27"]
[EventType "swiss"]
[EventCountry "GBR"]
[SourceTitle "playchess.com"]
[Source "ChessBase"]
[SourceQuality "1"]
[TimeControl "40/5400+30:1800+30"]

1. g3 {[%emt 0:00:00]} e5 {[%emt 0:00:00]} 2. c4 {[%emt 0:00:00]} Nf6 {[%emt 0:00:38]} 3. Bg2 {[%emt 0:00:08]} c6 {[%emt 0:01:15]} 4. d4 {[%emt 0:00:12]} e4 {[%emt 0:00:52]} 5. Nc3 {[%emt 0:04:36]} d5 {[%emt 0:00:37]} 6. cxd5 {[%emt 0:00:15]} cxd5 {[%emt 0:00:06]} 7. Bg5 {[%emt 0:00:24]} Nbd7 {[%emt 0:01:52]} 8. Qb3 {[%emt 0:06:11]} Bd6 {[%emt 0:03:38]} 9. Nb5 {[%emt 0:07:10]} Bb8 {[%emt 0:04:42]} 10. Qb4 {[%emt 0:11:10]} a5 {[%emt 0:21:01]} 11. Qa3 {[%emt 0:13:11]} Nb6 {[%emt 0:13:43]} 12. Rc1 {[%emt 0:03:50]} Nc4 {[%emt 0:02:54]} 13. Rxc4 {[%emt 0:05:14]} dxc4 {[%emt 0:00:18]} 14. Bxe4 {[%emt 0:00:16]} Qb6 {[%emt 0:05:43]} 15. Bxf6 {[%emt 0:03:46]} gxf6 {[%emt 0:06:14]} 16. Qe3 {[%emt 0:02:37]} Kd8 {[%emt 0:04:06]} 17. a4 {[%emt 0:00:56]} Re8 {[%emt 0:02:20]} 18. Qf3 {[%emt 0:03:39]} Bc7 {[%emt 0:04:51]} 19. e3 {[%emt 0:03:49]} Bd7 {[%emt 0:00:22]} 20. Ne2 {[%emt 0:00:12]} Bxb5 {[%emt 0:01:28]} 21. axb5 {[%emt 0:00:05]} Qxb5 {[%emt 0:02:43]} 22. Bxb7 {[%emt 0:04:53]} Rb8 {[%emt 0:09:55]} 23. Bc6 {[%emt 0:01:13]} Qb4+ {[%emt 0:00:29]} 24. Nc3 {[%emt 0:02:09]} Re6 {[%emt 0:00:19]} 25. O-O {[%emt 0:01:04]} Qxb2 {[%emt 0:04:50]} 26. Na4 {[%emt 0:01:54]} Qa3 {[%emt 0:02:09]} 27. Nc5 {[%emt 0:00:11]} Rd6 {[%emt 0:00:22]} 28. Qe4 {[%emt 0:00:23]} Re6 {[%emt 0:00:44]} 29. Qd5+ {[%emt 0:00:37]} Rd6 {[%emt 0:00:28]} 30. Qxf7 {[%emt 0:00:10]} Bb6 {[%emt 0:00:28]} 31. Qe8+ {[%emt 0:00:12]} Kc7 {[%emt 0:00:03]} 32. Na6# {[%emt 0:00:05]} 1-0

[Event "106th British-ch 2019"]
[Site "Torquay"]
[Date "2019.07.28"]
[Round "2.20"]
[White "Zapolskis, Antanas"]
[Black "Holland, Chris Kd"]
[Result "1-0"]
[ECO "C08"]
[WhiteElo "2290"]
[BlackElo "2143"]
[Annotator "NA"]
[PlyCount "117"]
[EventDate "2019.07.27"]
[EventType "swiss"]
[EventCountry "GBR"]
[SourceTitle "playchess.com"]
[Source "ChessBase"]
[SourceQuality "1"]
[TimeControl "40/5400+30:1800+30"]

1. e4 {[%emt 0:00:00]} e6 {[%emt 0:00:23]} 2. d4 {[%emt 0:00:00]} d5 {[%emt 0:00:05]} 3. Nd2 {[%emt 0:00:00]} a6 {[%emt 0:01:18]} 4. Ngf3 {[%emt 0:03:31]} c5 {[%emt 0:02:14]} 5. exd5 {[%emt 0:06:17]} exd5 {[%emt 0:02:01]} 6. dxc5 {[%emt 0:00:37]} Bxc5 {[%emt 0:00:12]} 7. Nb3 {[%emt 0:00:52]} Ba7 {[%emt 0:23:50]} 8. Bg5 {[%emt 0:04:24]} Ne7 {[%emt 0:02:14]} 9. Qe2 {[%emt 0:06:06]} Nbc6 {[%emt 0:04:55]} 10. O-O-O {[%emt 0:00:55]} O-O {[%emt 0:11:25]} 11. Be3 {[%emt 0:02:26]} Qc7 {[%emt 0:20:23]} 12. Bxa7 {[%emt 0:01:41]} Nxa7 {[%emt 0:00:24]} 13. Qe5 {[%emt 0:01:00]} Qxe5 {[%emt 0:01:28]} 14. Nxe5 {[%emt 0:00:08]} f6 {[%emt 0:03:12]} 15. Nd3 {[%emt 0:00:44]} Nb5 {[%emt 0:06:09]} 16. Nf4 {[%emt 0:02:30]} Nc7 {[%emt 0:00:11]} 17. Bd3 {[%emt 0:03:18]} b6 {[%emt 0:06:18]} 18. Rhe1 {[%emt 0:00:33]} Rf7 {[%emt 0:04:00]} 19. c4 {[%emt 0:05:14]} g6 {[%emt 0:01:29]} 20. Kb1 {[%emt 0:00:46]} Kf8 {[%emt 0:01:21]} 21. c5 {[%emt 0:00:28]} bxc5 {[%emt 0:01:27]} 22. Nxc5 {[%emt 0:00:11]} a5 {[%emt 0:01:39]} 23. Bc2 {[%emt 0:02:44]} Rb8 {[%emt 0:01:04]} 24. Bb3 {[%emt 0:02:56]} Bf5+ {[%emt 0:01:25]} 25. Ka1 {[%emt 0:00:10]} Rb5 {[%emt 0:00:29]} 26. Rc1 {[%emt 0:04:08]} g5 {[%emt 0:00:45]} 27. Ne2 {[%emt 0:00:26]} Nc6 {[%emt 0:01:28]} 28. Ba4 {[%emt 0:00:24]} Rxc5 {[%emt 0:00:43]} 29. Rxc5 {[%emt 0:00:11]} Nb4 {[%emt 0:00:23]} 30. Rec1 {[%emt 0:02:58]} Ne6 {[%emt 0:01:15]} 31. Rxa5 {[%emt 0:00:50]} Bd3 {[%emt 0:00:06]} 32. Rc8+ {[%emt 0:00:57]} Kg7 {[%emt 0:00:04]} 33. Nc1 {[%emt 0:00:09]} Bf1 {[%emt 0:00:10]} 34. a3 {[%emt 0:00:19]} Nd3 {[%emt 0:00:08]} 35. Nxd3 {[%emt 0:00:10]} Bxd3 {[%emt 0:00:03]} 36. Rxd5 {[%emt 0:00:22]} Nf4 {[%emt 0:00:06]} 37. Rd7 {[%emt 0:00:43]} Rxd7 {[%emt 0:00:12]} 38. Bxd7 {[%emt 0:00:09]} Nxg2 {[%emt 0:00:02]} 39. Be6 {[%emt 0:01:35]} Nf4 {[%emt 0:00:11]} 40. Bc4 {[%emt 0:00:12]} Be4 {[%emt 0:00:16]} 41. Rg8+ {[%emt 0:30:25]} Kh6 {[%emt 0:30:03]} 42. a4 {[%emt 0:00:12]} Nh3 {[%emt 0:00:11]} 43. a5 {[%emt 0:00:40]} Nxf2 {[%emt 0:00:04]} 44. a6 {[%emt 0:00:09]} Ng4 {[%emt 0:00:24]} 45. h3 {[%emt 0:00:26]} Nf2 {[%emt 0:00:08]} 46. Be6 {[%emt 0:00:08]} f5 {[%emt 0:00:15]} 47. a7 {[%emt 0:00:06]} f4 {[%emt 0:00:30]} 48. a8=Q {[%emt 0:00:49]} Bxa8 {[%emt 0:00:04]} 49. Rxa8 {[%emt 0:00:09]} Kh5 {[%emt 0:01:19]} 50. b4 {[%emt 0:01:07]} Kh4 {[%emt 0:01:07]} 51. Ra3 {[%emt 0:00:09]} h5 {[%emt 0:02:57]} 52. b5 {[%emt 0:00:14]} Ne4 {[%emt 0:00:12]} 53. b6 {[%emt 0:00:45]} Nd6 {[%emt 0:00:12]} 54. Bd5 {[%emt 0:00:16]} g4 {[%emt 0:00:07]} 55. hxg4 {[%emt 0:00:06]} hxg4 {[%emt 0:00:09]} 56. b7 {[%emt 0:00:11]} Nxb7 {[%emt 0:00:18]} 57. Bxb7 {[%emt 0:00:08]} f3 {[%emt 0:00:10]} 58. Bxf3 {[%emt 0:00:07]} gxf3 {[%emt 0:00:03]} 59. Rxf3 {[%emt 0:00:08]} 1-0

[Event "106th British-ch 2019"]
[Site "Torquay"]
[Date "2019.07.28"]
[Round "2.23"]
[White "Wall, Tim P"]
[Black "Modi, Shyam Jagdish"]
[Result "0-1"]
[ECO "A49"]
[WhiteElo "2246"]
[BlackElo "2098"]
[Annotator "NA"]
[PlyCount "60"]
[EventDate "2019.07.27"]
[EventType "swiss"]
[EventCountry "GBR"]
[SourceTitle "playchess.com"]
[Source "ChessBase"]
[SourceQuality "1"]
[TimeControl "40/5400+30:1800+30"]

1. d4 {[%emt 0:13:32]} Nf6 {[%emt 0:00:00]} 2. Nf3 {[%emt 0:00:21]} g6 {[%emt 0:01:11]} 3. g3 {[%emt 0:00:35]} Bg7 {[%emt 0:00:07]} 4. Bg2 {[%emt 0:00:09]} O-O {[%emt 0:00:16]} 5. O-O {[%emt 0:00:14]} d6 {[%emt 0:00:17]} 6. b3 {[%emt 0:00:27]} Nbd7 {[%emt 0:01:35]} 7. Bb2 {[%emt 0:01:03]} e5 {[%emt 0:00:52]} 8. dxe5 {[%emt 0:00:28]} Ng4 {[%emt 0:00:06]} 9. Qc1 {[%emt 0:00:45]} Ngxe5 {[%emt 0:06:45]} 10. c4 Nxf3+ {[%emt 0:08:31]} 11. Bxf3 {[%emt 0:02:08]} Ne5 {[%emt 0:06:34]} 12. Bg2 {[%emt 0:03:59]} f5 {[%emt 0:05:09]} 13. Nc3 {[%emt 0:01:58]} f4 {[%emt 0:21:06]} 14. gxf4 {[%emt 0:06:48]} Bh6 {[%emt 0:18:15]} 15. Nd5 {[%emt 0:12:11]} Qh4 16. Qc3 {[%emt 0:00:30]} Bxf4 {[%emt 0:09:50]} 17. Nxf4 {[%emt 0:01:10]} Rxf4 {[%emt 0:00:45]} 18. Bc1 {[%emt 0:09:29]} Rf5 {[%emt 0:05:49]} 19. f4 {[%emt 0:13:44]} Ng4 {[%emt 0:02:10]} 20. h3 {[%emt 0:00:09]} Nf6 {[%emt 0:01:18]} 21. Bb2 {[%emt 0:01:14]} Kf7 {[%emt 0:04:34]} 22. e4 {[%emt 0:03:15]} Rh5 {[%emt 0:00:30]} 23. e5 {[%emt 0:02:27]} Ne8 {[%emt 0:01:20]} 24. Rf3 {[%emt 0:12:15]} Bd7 {[%emt 0:04:18]} 25. Re1 {[%emt 0:05:05]} Rf5 {[%emt 0:00:18]} 26. exd6 {[%emt 0:02:58]} cxd6 {[%emt 0:00:50]} 27. Rfe3 {[%emt 0:00:13]} Qf6 {[%emt 0:00:28]} 28. Qd2 {[%emt 0:02:01]} Qh4 {[%emt 0:00:30]} 29. Qd5+ {[%emt 0:02:23]} Rxd5 {[%emt 0:00:18]} 30. Bxd5+ {[%emt 0:00:20]} Kf8 {[%emt 0:00:11]} 0-1

[Event "106th British-ch 2019"]
[Site "Torquay"]
[Date "2019.07.28"]
[Round "2.24"]
[White "Longson, Sarah N"]
[Black "Toma, Katarzyna"]
[Result "0-1"]
[ECO "B40"]
[WhiteElo "2095"]
[BlackElo "2229"]
[Annotator "NA"]
[PlyCount "78"]
[EventDate "2019.07.27"]
[EventType "swiss"]
[EventCountry "GBR"]
[SourceTitle "playchess.com"]
[Source "ChessBase"]
[SourceQuality "1"]
[TimeControl "40/5400+30:1800+30"]

1. e4 {[%emt 0:00:00]} c5 {[%emt 0:00:00]} 2. Nf3 {[%emt 0:00:00]} e6 {[%emt 0:00:00]} 3. g3 {[%emt 0:00:28]} Nc6 {[%emt 0:00:29]} 4. Bg2 {[%emt 0:00:31]} Nf6 {[%emt 0:00:50]} 5. Qe2 {[%emt 0:02:01]} e5 {[%emt 0:03:02]} 6. c3 {[%emt 0:01:44]} Be7 {[%emt 0:00:24]} 7. a4 {[%emt 0:03:05]} O-O {[%emt 0:05:32]} 8. Na3 {[%emt 0:01:37]} d5 {[%emt 0:03:38]} 9. exd5 {[%emt 0:01:27]} Qxd5 {[%emt 0:00:08]} 10. Qc4 {[%emt 0:34:27]} Qd8 {[%emt 0:08:34]} 11. O-O {[%emt 0:04:17]} Bf5 {[%emt 0:03:12]} 12. Re1 {[%emt 0:10:05]} Na5 {[%emt 0:06:25]} 13. Qa2 {[%emt 0:02:22]} e4 {[%emt 0:11:08]} 14. Ng5 {[%emt 0:02:21]} Qd3 {[%emt 0:09:59]} 15. Re3 {[%emt 0:04:16]} Qd5 {[%emt 0:00:37]} 16. Nxe4 {[%emt 0:08:24]} Qxa2 {[%emt 0:05:13]} 17. Nxf6+ {[%emt 0:01:58]} Bxf6 {[%emt 0:00:05]} 18. Rxa2 {[%emt 0:00:05]} Nb3 {[%emt 0:00:07]} 19. Re1 {[%emt 0:02:06]} Rfe8 {[%emt 0:00:16]} 20. Rd1 {[%emt 0:00:21]} Rad8 {[%emt 0:02:10]} 21. Bxb7 {[%emt 0:03:36]} Re7 {[%emt 0:00:40]} 22. Bf3 {[%emt 0:01:18]} Rde8 {[%emt 0:01:07]} 23. Kg2 {[%emt 0:04:15]} Re1 {[%emt 0:00:36]} 24. d4 {[%emt 0:02:42]} Rxd1 {[%emt 0:03:51]} 25. Bxd1 {[%emt 0:00:05]} Nxc1 {[%emt 0:00:06]} 26. Ra1 {[%emt 0:00:04]} Nd3 {[%emt 0:00:05]} 27. Bc2 {[%emt 0:02:47]} cxd4 {[%emt 0:00:47]} 28. Bxd3 {[%emt 0:01:00]} Bxd3 {[%emt 0:00:20]} 29. cxd4 {[%emt 0:00:26]} Be4+ {[%emt 0:00:51]} 30. f3 {[%emt 0:00:52]} Bc6 {[%emt 0:00:25]} 31. Nc4 {[%emt 0:02:00]} Bxd4 {[%emt 0:02:03]} 32. Rd1 {[%emt 0:00:46]} Bc5 {[%emt 0:00:14]} 33. b3 {[%emt 0:00:32]} Re2+ {[%emt 0:04:04]} 34. Kf1 {[%emt 0:00:54]} Rf2+ {[%emt 0:01:45]} 35. Ke1 {[%emt 0:00:11]} Rxf3 {[%emt 0:00:07]} 36. Rd8+ {[%emt 0:00:37]} Bf8 {[%emt 0:00:05]} 37. Na5 {[%emt 0:02:19]} Rf6 {[%emt 0:01:15]} 38. Rc8 {[%emt 0:00:56]} Bd5 {[%emt 0:00:14]} 39. b4 {[%emt 0:00:18]} g6 {[%emt 0:00:49]} 0-1

[Event "106th British-ch 2019"]
[Site "Torquay"]
[Date "2019.07.28"]
[Round "2.25"]
[White "Merriman, John"]
[Black "Donaldson, Thomas"]
[Result "1-0"]
[ECO "A65"]
[WhiteElo "2226"]
[BlackElo "2065"]
[Annotator "NA"]
[PlyCount "63"]
[EventDate "2019.07.27"]
[EventType "swiss"]
[EventCountry "GBR"]
[SourceTitle "playchess.com"]
[Source "ChessBase"]
[SourceQuality "1"]
[TimeControl "40/5400+30:1800+30"]

1. d4 {[%emt 0:00:00]} Nf6 {[%emt 0:00:00]} 2. c4 {[%emt 0:00:00]} g6 {[%emt 0:00:00]} 3. Nc3 {[%emt 0:00:00]} Bg7 {[%emt 0:00:00]} 4. e4 {[%emt 0:00:00]} d6 {[%emt 0:00:00]} 5. Nge2 {[%emt 0:00:27]} O-O {[%emt 0:00:11]} 6. Ng3 {[%emt 0:00:13]} c5 {[%emt 0:01:20]} 7. d5 {[%emt 0:00:20]} e6 {[%emt 0:00:28]} 8. Be2 {[%emt 0:00:20]} exd5 {[%emt 0:00:13]} 9. cxd5 {[%emt 0:00:19]} a6 {[%emt 0:00:22]} 10. a4 {[%emt 0:00:15]} h5 {[%emt 0:03:21]} 11. Bg5 {[%emt 0:02:41]} Qc7 {[%emt 0:01:43]} 12. Qd2 {[%emt 0:07:12]} Nbd7 {[%emt 0:02:15]} 13. O-O {[%emt 0:02:47]} Nh7 {[%emt 0:02:44]} 14. Bh6 {[%emt 0:02:22]} h4 {[%emt 0:03:26]} 15. Nh1 {[%emt 0:00:57]} Ne5 {[%emt 0:11:16]} 16. Bxg7 {[%emt 0:02:39]} Kxg7 {[%emt 0:00:16]} 17. f4 {[%emt 0:01:16]} Ng4 {[%emt 0:00:06]} 18. Bxg4 {[%emt 0:14:59]} Bxg4 {[%emt 0:00:07]} 19. Nf2 {[%emt 0:02:25]} Bd7 {[%emt 0:02:40]} 20. e5 {[%emt 0:01:13]} b5 {[%emt 0:01:33]} 21. exd6 {[%emt 0:05:29]} Qb6 {[%emt 0:00:45]} 22. a5 {[%emt 0:06:41]} Qxd6 {[%emt 0:02:09]} 23. Nce4 {[%emt 0:00:29]} Qc7 {[%emt 0:00:16]} 24. Qc3+ {[%emt 0:02:07]} Kg8 {[%emt 0:00:14]} 25. Nxc5 {[%emt 0:02:31]} Rfc8 {[%emt 0:02:50]} 26. b4 {[%emt 0:05:18]} Qxf4 {[%emt 0:02:53]} 27. Nfe4 {[%emt 0:00:17]} Qg4 {[%emt 0:01:19]} 28. h3 {[%emt 0:07:20]} Qh5 {[%emt 0:01:05]} 29. Nd6 {[%emt 0:03:46]} Qxd5 {[%emt 0:08:00]} 30. Rxf7 {[%emt 0:07:21]} Qxf7 {[%emt 0:00:53]} 31. Nxf7 {[%emt 0:00:05]} Kxf7 {[%emt 0:00:07]} 32. Qb3+ {[%emt 0:00:18]} 1-0

[Event "106th British-ch 2019"]
[Site "Torquay"]
[Date "2019.07.28"]
[Round "2.26"]
[White "Player, Edmund C"]
[Black "Jaufarally, Nadia"]
[Result "1-0"]
[ECO "B31"]
[WhiteElo "2202"]
[BlackElo "1944"]
[Annotator "NA"]
[PlyCount "79"]
[EventDate "2019.07.27"]
[EventType "swiss"]
[EventCountry "GBR"]
[SourceTitle "playchess.com"]
[Source "ChessBase"]
[SourceQuality "1"]
[TimeControl "40/5400+30:1800+30"]

1. e4 {[%emt 0:00:00]} c5 {[%emt 0:00:18]} 2. Nf3 {[%emt 0:00:00]} Nc6 {[%emt 0:00:20]} 3. Bb5 {[%emt 0:00:00]} g6 {[%emt 0:00:08]} 4. Bxc6 {[%emt 0:01:58]} dxc6 {[%emt 0:00:10]} 5. d3 {[%emt 0:00:16]} Bg7 {[%emt 0:00:15]} 6. h3 {[%emt 0:00:05]} e5 {[%emt 0:00:17]} 7. Be3 {[%emt 0:02:40]} b6 {[%emt 0:00:41]} 8. a4 {[%emt 0:02:37]} a5 {[%emt 0:01:20]} 9. O-O {[%emt 0:05:45]} Ne7 {[%emt 0:01:34]} 10. Qd2 {[%emt 0:04:04]} h6 {[%emt 0:01:35]} 11. Na3 {[%emt 0:22:36]} Qc7 {[%emt 0:03:05]} 12. Nc4 {[%emt 0:02:11]} Be6 {[%emt 0:01:40]} 13. Qc1 {[%emt 0:14:21]} f5 {[%emt 0:06:15]} 14. exf5 {[%emt 0:11:41]} gxf5 {[%emt 0:00:34]} 15. Bd2 {[%emt 0:02:47]} Ng6 {[%emt 0:12:30]} 16. Bc3 {[%emt 0:01:39]} O-O {[%emt 0:04:27]} 17. Ncxe5 {[%emt 0:07:03]} Nxe5 {[%emt 0:04:06]} 18. Bxe5 {[%emt 0:00:50]} Bxe5 {[%emt 0:01:21]} 19. Qe3 {[%emt 0:01:33]} Bxb2 {[%emt 0:02:47]} 20. Qxe6+ {[%emt 0:00:07]} Kh7 {[%emt 0:04:11]} 21. Rab1 {[%emt 0:00:58]} Bg7 {[%emt 0:10:58]} 22. Rfe1 {[%emt 0:00:37]} Rae8 {[%emt 0:08:31]} 23. Qb3 {[%emt 0:01:25]} Rb8 {[%emt 0:09:50]} 24. Qc4 {[%emt 0:01:01]} Qd6 {[%emt 0:04:11]} 25. Re6 {[%emt 0:02:00]} Qd7 {[%emt 0:05:51]} 26. Ne5 {[%emt 0:02:49]} Bxe5 {[%emt 0:00:19]} 27. Rxe5 {[%emt 0:00:04]} Qg7 {[%emt 0:08:43]} 28. Rbe1 {[%emt 0:04:18]} Rf7 {[%emt 0:02:26]} 29. f3 {[%emt 0:05:13]} Rbb7 {[%emt 0:01:39]} 30. Qe6 {[%emt 0:02:08]} Qg6 {[%emt 0:01:05]} 31. Qc8 {[%emt 0:01:37]} Rbc7 {[%emt 0:01:03]} 32. Qb8 {[%emt 0:00:39]} Rg7 {[%emt 0:02:51]} 33. R1e2 {[%emt 0:00:13]} Qg5 {[%emt 0:00:55]} 34. Re8 {[%emt 0:01:05]} Qc1+ {[%emt 0:00:30]} 35. Re1 {[%emt 0:00:37]} Qxc2 {[%emt 0:00:30]} 36. Rh8+ {[%emt 0:00:05]} Kg6 {[%emt 0:00:04]} 37. Qe8+ {[%emt 0:00:34]} Kg5 {[%emt 0:00:34]} 38. h4+ {[%emt 0:00:30]} Kxh4 {[%emt 0:00:34]} 39. Rxh6+ {[%emt 0:00:24]} Kg3 {[%emt 0:00:49]} 40. Qe5+ {[%emt 0:00:30]} 1-0

[Event "106th British-ch 2019"]
[Site "Torquay"]
[Date "2019.07.28"]
[Round "2.27"]
[White "Khan, Tito"]
[Black "Stoyanov, Viktor"]
[Result "0-1"]
[ECO "A45"]
[WhiteElo "1921"]
[BlackElo "2198"]
[Annotator "NA"]
[PlyCount "50"]
[EventDate "2019.07.27"]
[EventType "swiss"]
[EventCountry "GBR"]
[SourceTitle "playchess.com"]
[Source "ChessBase"]
[SourceQuality "1"]
[TimeControl "40/5400+30:1800+30"]

1. d4 {[%emt 0:00:00]} Nf6 {[%emt 0:00:19]} 2. Bf4 {[%emt 0:00:00]} g6 {[%emt 0:00:35]} 3. Nc3 {[%emt 0:00:00]} d5 {[%emt 0:00:05]} 4. e3 {[%emt 0:00:24]} Bg7 {[%emt 0:00:04]} 5. h4 {[%emt 0:01:17]} O-O {[%emt 0:00:06]} 6. h5 {[%emt 0:00:11]} c5 {[%emt 0:00:13]} 7. Nb5 {[%emt 0:04:35]} Nc6 {[%emt 0:00:08]} 8. Nc7 {[%emt 0:08:01]} e5 {[%emt 0:00:06]} 9. dxe5 {[%emt 0:00:51]} Qxc7 {[%emt 0:00:14]} 10. exf6 {[%emt 0:03:23]} Qa5+ {[%emt 0:00:00]} 11. c3 {[%emt 0:18:43]} Bxf6 {[%emt 0:00:05]} 12. Bd3 {[%emt 0:09:24]} g5 {[%emt 0:05:27]} 13. Bg3 {[%emt 0:05:10]} d4 {[%emt 0:01:24]} 14. Qf3 {[%emt 0:22:10]} dxc3 {[%emt 0:02:56]} 15. Qe4 {[%emt 0:10:43]} cxb2+ {[%emt 0:00:05]} 16. Ke2 {[%emt 0:00:04]} Rd8 {[%emt 0:00:14]} 17. Bd6 {[%emt 0:01:22]} Bf5 {[%emt 0:00:08]} 18. Qxf5 {[%emt 0:00:24]} Rxd6 {[%emt 0:00:05]} 19. Qxh7+ {[%emt 0:01:26]} Kf8 {[%emt 0:00:01]} 20. Rd1 {[%emt 0:01:43]} Rad8 {[%emt 0:01:03]} 21. Nf3 {[%emt 0:01:22]} Qxa2 {[%emt 0:00:49]} 22. Bb1 {[%emt 0:03:48]} Qc4+ {[%emt 0:00:37]} 23. Bd3 {[%emt 0:01:38]} Rxd3 {[%emt 0:00:26]} 24. Rxd3 {[%emt 0:01:20]} Nb4 {[%emt 0:00:09]} 25. Ne5 {[%emt 0:01:31]} Bxe5 {[%emt 0:00:27]} 0-1

[Event "106th British-ch 2019"]
[Site "Torquay"]
[Date "2019.07.29"]
[Round "3.2"]
[White "Rocco, Federico"]
[Black "Haria, Ravi"]
[Result "0-1"]
[ECO "B09"]
[WhiteElo "2157"]
[BlackElo "2430"]
[Annotator "NA"]
[PlyCount "86"]
[EventDate "2019.07.27"]
[EventType "swiss"]
[EventCountry "GBR"]
[SourceTitle "playchess.com"]
[Source "ChessBase"]
[SourceQuality "1"]
[TimeControl "40/5400+30:1800+30"]

1. e4 {[%emt 0:02:31]} d6 {[%emt 0:00:00]} 2. d4 {[%emt 0:00:14]} Nf6 {[%emt 0:00:00]} 3. Nc3 {[%emt 0:00:50]} g6 {[%emt 0:00:00]} 4. f4 {[%emt 0:01:37]} Bg7 {[%emt 0:00:41]} 5. Nf3 {[%emt 0:01:17]} O-O {[%emt 0:01:34]} 6. Bd3 {[%emt 0:00:26]} Nc6 {[%emt 0:00:25]} 7. e5 {[%emt 0:01:13]} dxe5 {[%emt 0:00:59]} 8. dxe5 {[%emt 0:03:22]} Nd5 {[%emt 0:02:53]} 9. Nxd5 {[%emt 0:02:21]} Qxd5 {[%emt 0:00:20]} 10. Qe2 {[%emt 0:00:08]} Be6 {[%emt 0:05:08]} 11. O-O {[%emt 0:16:08]} Rad8 {[%emt 0:24:35]} 12. Bd2 {[%emt 0:06:18]} f6 {[%emt 0:08:34]} 13. Bc3 {[%emt 0:10:27]} fxe5 {[%emt 0:07:05]} 14. fxe5 {[%emt 0:02:07]} Qc5+ {[%emt 0:03:16]} 15. Qf2 {[%emt 0:00:56]} Qxf2+ {[%emt 0:01:04]} 16. Rxf2 {[%emt 0:00:06]} Bd5 {[%emt 0:01:58]} 17. Re1 {[%emt 0:12:42]} Bxa2 {[%emt 0:04:51]} 18. Rfe2 {[%emt 0:00:06]} Bd5 {[%emt 0:03:25]} 19. Ng5 {[%emt 0:02:49]} h6 {[%emt 0:03:49]} 20. Nh3 {[%emt 0:01:22]} g5 {[%emt 0:00:35]} 21. Nf2 {[%emt 0:00:13]} b6 {[%emt 0:10:41]} 22. b3 {[%emt 0:02:30]} Be6 {[%emt 0:00:53]} 23. Re4 {[%emt 0:03:56]} Bd5 {[%emt 0:07:21]} 24. R4e3 {[%emt 0:01:13]} a5 {[%emt 0:02:37]} 25. Rh3 {[%emt 0:05:47]} Be6 {[%emt 0:01:34]} 26. Rg3 {[%emt 0:00:51]} Nd4 {[%emt 0:00:55]} 27. Rge3 {[%emt 0:08:30]} c5 {[%emt 0:00:49]} 28. Ne4 {[%emt 0:01:31]} Bf5 {[%emt 0:02:39]} 29. Bxd4 {[%emt 0:04:12]} Rxd4 {[%emt 0:00:30]} 30. c3 {[%emt 0:02:10]} Rdd8 {[%emt 0:00:41]} 31. Bc4+ {[%emt 0:00:07]} Kh7 {[%emt 0:01:33]} 32. Ng3 {[%emt 0:01:51]} Bg6 {[%emt 0:00:06]} 33. Be6 {[%emt 0:00:32]} Rd2 {[%emt 0:01:14]} 34. R3e2 {[%emt 0:02:24]} Rxe2 {[%emt 0:01:57]} 35. Rxe2 {[%emt 0:00:10]} Rf4 {[%emt 0:00:06]} 36. Bd5 {[%emt 0:01:25]} h5 {[%emt 0:00:42]} 37. c4 {[%emt 0:02:33]} h4 {[%emt 0:00:26]} 38. Ne4 {[%emt 0:00:35]} Rf5 {[%emt 0:01:05]} 39. e6 {[%emt 0:01:06]} Bd4+ {[%emt 0:00:04]} 40. Nf2 {[%emt 0:00:07]} Rxf2 {[%emt 0:00:29]} 41. Rxf2 {[%emt 0:30:20]} Kg7 {[%emt 0:30:13]} 42. Kf1 {[%emt 0:00:35]} Bxf2 {[%emt 0:00:04]} 43. Kxf2 {[%emt 0:00:05]} Bc2 {[%emt 0:01:18]} 0-1